[Event "FIDE WYCC Open U14 2023"]
[Site "Montesilvano"]
[Date "2023.11.18"]
[Round "6.3"]
[White "Brattgjerd, Isak Vinh"]
[Black "Arca, Christian Gian Karlo"]
[Result "0-1"]
[ECO "B12"]
[WhiteElo "2235"]
[BlackElo "2347"]
[Annotator "ChessBase"]
[PlyCount "114"]
[EventDate "2023.11.13"]
[EventType "swiss"]
[EventCountry "ITA"]
[SourceTitle "playchess.com"]
[Source "ChessBase"]
[SourceQuality "1"]
[TimeControl "40/5400+30:1800+30"]

1. e4 {[%emt 0:00:03]} c6 {[%emt 0:00:05]} 2. d4 {[%emt 0:00:03]} d5 {[%emt 0:00:05]} 3. e5 {[%emt 0:00:03]} Bf5 {[%emt 0:00:09]} 4. h4 {[%emt 0:00:04]} h5 {[%emt 0:00:05]} 5. Bg5 {[%emt 0:00:03]} Qb6 {[%emt 0:00:07]} 6. Bd3 {[%emt 0:00:04]} Qxd4 {[%emt 0:00:17]} 7. Nf3 {[%emt 0:00:04]} Qg4 {[%emt 0:00:12]} 8. Bxf5 {[%emt 0:00:04]} Qxf5 {[%emt 0:00:07]} 9. c4 {[%emt 0:00:18]} Qe4+ {[%emt 0:00:31]} 10. Be3 {[%emt 0:00:02]} e6 {[%emt 0:02:38]} 11. Nbd2 {[%emt 0:00:02]} Qd3 {[%emt 0:06:00]} 12. Rc1 {[%emt 0:00:01]} Bb4 {[%emt 0:05:08]} 13. cxd5 {[%emt 0:00:01]} exd5 {[%emt 0:02:07]} 14. a3 {[%emt 0:00:04]} Ba5 {[%emt 0:03:26]} 15. Qa4 {[%emt 0:00:24]} Bxd2+ {[%emt 0:01:20]} 16. Bxd2 {[%emt 0:02:31]} Nd7 {[%emt 0:07:05]} 17. Bf4 {[%emt 0:31:35]} Ne7 {[%emt 0:02:52]} 18. Rd1 {[%emt 0:00:38]} Nc5 {[%emt 0:02:46]} 19. Rxd3 {[%emt 0:03:06]} Nxa4 {[%emt 0:00:26]} 20. Rd2 {[%emt 0:00:12]} Nc5 {[%emt 0:01:00]} 21. O-O {[%emt 0:00:07]} Ne6 {[%emt 0:00:29]} 22. Bh2 {[%emt 0:00:48]} a5 {[%emt 0:01:41]} 23. Nd4 {[%emt 0:00:45]} Nxd4 {[%emt 0:02:01]} 24. Rxd4 {[%emt 0:00:02]} Nf5 {[%emt 0:00:09]} 25. Rf4 {[%emt 0:00:34]} g6 {[%emt 0:00:27]} 26. Re1 {[%emt 0:01:34]} Ke7 {[%emt 0:04:33]} 27. Kf1 {[%emt 0:03:14]} c5 {[%emt 0:00:43]} 28. f3 {[%emt 0:01:59]} Ng7 {[%emt 0:06:04]} 29. Rd1 {[%emt 0:03:12]} Rhd8 {[%emt 0:01:27]} 30. Rf6 {[%emt 0:01:33]} Ne6 {[%emt 0:00:57]} 31. f4 {[%emt 0:01:07]} b5 {[%emt 0:01:06]} 32. f5 {[%emt 0:02:20]} gxf5 {[%emt 0:00:17]} 33. Rxf5 {[%emt 0:00:01]} c4 {[%emt 0:01:10]} 34. Bg3 {[%emt 0:04:12]} d4 {[%emt 0:02:41]} 35. Be1 {[%emt 0:01:48]} Rdc8 {[%emt 0:01:42]} 36. Rc1 {[%emt 0:14:13]} Nc5 {[%emt 0:01:10]} 37. Rc2 {[%emt 0:02:04]} Nd3 {[%emt 0:18:04]} 38. e6 {[%emt 0:13:20]} Rc5 {[%emt 0:02:10]} 39. Rxc5 {[%emt 0:03:50]} Nxc5 {[%emt 0:00:37]} 40. exf7 {[%emt 0:00:00]} Kxf7 {[%emt 0:00:00]} 41. Rf2+ {[%emt 0:06:54]} Kg6 {[%emt 0:03:31]} 42. Rf4 {[%emt 0:00:53]} Nd3 {[%emt 0:02:35]} 43. Re4 {[%emt 0:07:19]} b4 {[%emt 0:03:13]} 44. axb4 {[%emt 0:01:16]} axb4 {[%emt 0:00:19]} 45. Bxb4 {[%emt 0:16:52]} Nxb4 {[%emt 0:02:44]} 46. Rxd4 {[%emt 0:00:03]} Rc8 {[%emt 0:00:09]} 47. g4 {[%emt 0:01:45]} hxg4 {[%emt 0:04:38]} 48. Rxg4+ {[%emt 0:00:07]} Kf5 {[%emt 0:00:02]} 49. Rg7 {[%emt 0:03:45]} Nd3 {[%emt 0:03:46]} 50. Rb7 {[%emt 0:08:39]} Re8 {[%emt 0:01:30]} 51. b3 {[%emt 0:01:31]} Re1+ {[%emt 0:02:42]} 52. Kg2 {[%emt 0:00:01]} c3 {[%emt 0:01:19]} 53. Rc7 {[%emt 0:01:18]} Rc1 {[%emt 0:00:18]} 54. b4 {[%emt 0:00:27]} Nxb4 {[%emt 0:00:30]} 55. Kf3 {[%emt 0:00:06]} c2 {[%emt 0:00:16]} 56. Ke2 {[%emt 0:00:42]} Rh1 {[%emt 0:00:15]} 57. Kd2 {[%emt 0:00:14]} Rd1+ {[%emt 0:00:05]} 0-1

[Event "FIDE WYCC Open U14 2023"]
[Site "Montesilvano"]
[Date "2023.11.18"]
[Round "6.4"]
[White "Sowinski, Pawel"]
[Black "Dumanuly, Sultanbeibarys"]
[Result "1-0"]
[ECO "B30"]
[WhiteElo "2347"]
[BlackElo "1931"]
[Annotator "RC"]
[PlyCount "57"]
[EventDate "2023.11.13"]
[EventType "swiss"]
[EventCountry "ITA"]
[SourceTitle "playchess.com"]
[Source "ChessBase"]
[SourceQuality "1"]
[TimeControl "40/5400+30:1800+30"]

1. e4 {[%emt 0:00:03]} c5 {[%emt 0:00:05]} 2. Nf3 {[%emt 0:00:04]} Nc6 {[%emt 0:00:05]} 3. Bb5 {[%emt 0:00:04]} d6 {[%emt 0:00:06]} 4. O-O {[%emt 0:00:24]} Bd7 {[%emt 0:00:05]} 5. Re1 {[%emt 0:00:05]} Nf6 {[%emt 0:00:05]} 6. c3 {[%emt 0:00:20]} a6 {[%emt 0:00:05]} 7. Bf1 {[%emt 0:00:05]} Bg4 {[%emt 0:00:08]} 8. d4 {[%emt 0:00:23]} cxd4 {[%emt 0:02:06]} 9. cxd4 {[%emt 0:01:32]} e5 {[%emt 0:00:10]} 10. Be3 {[%emt 0:00:06]} Bxf3 {[%emt 0:17:11]} 11. gxf3 {[%emt 0:01:02]} exd4 {[%emt 0:00:09]} 12. Bxd4 {[%emt 0:00:03]} Be7 {[%emt 0:00:06]} 13. Nc3 {[%emt 0:00:37]} O-O {[%emt 0:01:06]} 14. f4 {[%emt 0:03:20]} Qd7 {[%emt 0:06:40]} 15. Bg2 {[%emt 0:01:45]} Nxd4 {[%emt 0:20:21]} 16. Qxd4 {[%emt 0:00:02]} Qg4 {[%emt 0:00:06]} 17. Qe3 {[%emt 0:00:54]} Rad8 {[%emt 0:08:01]} 18. Rad1 {[%emt 0:03:34]} Rfe8 {[%emt 0:05:18]} 19. Qg3 {[%emt 0:08:33]} Qh5 {[%emt 0:05:21]} 20. Bf3 {[%emt 0:02:06]} Qc5 {[%emt 0:03:25]} 21. e5 {[%emt 0:11:13]} dxe5 {[%emt 0:01:53]} 22. fxe5 {[%emt 0:00:03]} Nd7 {[%emt 0:00:11]} 23. Nd5 {[%emt 0:14:33]} Bf8 {[%emt 0:04:50]} 24. Bh5 {[%emt 0:22:41]} g6 {[%emt 0:04:46]} 25. Bg4 {[%emt 0:01:10]} Kh8 {[%emt 0:02:32]} 26. e6 {[%emt 0:06:04]} fxe6 {[%emt 0:00:04]} 27. Nc7 {[%emt 0:00:47]} Nf6 {[%emt 0:05:48]} 28. Nxe8 {[%emt 0:02:47]} Rxe8 {[%emt 0:00:06]} 29. Rxe6 {[%emt 0:00:52]} 1-0

[Event "FIDE WYCC Open U14 2023"]
[Site "Montesilvano"]
[Date "2023.11.18"]
[Round "6.5"]
[White "Yun, Hungi"]
[Black "Daakshin Arun"]
[Result "1/2-1/2"]
[ECO "B90"]
[WhiteElo "1884"]
[BlackElo "2342"]
[Annotator "RC"]
[PlyCount "81"]
[EventDate "2023.11.13"]
[EventType "swiss"]
[EventCountry "ITA"]
[SourceTitle "playchess.com"]
[Source "ChessBase"]
[SourceQuality "1"]
[TimeControl "40/5400+30:1800+30"]

1. e4 {[%emt 0:00:07]} c5 {[%emt 0:00:06]} 2. Nf3 {[%emt 0:00:20]} d6 {[%emt 0:00:15]} 3. d4 {[%emt 0:00:08]} cxd4 {[%emt 0:00:05]} 4. Nxd4 {[%emt 0:00:04]} Nf6 {[%emt 0:00:06]} 5. Nc3 {[%emt 0:00:05]} a6 {[%emt 0:00:05]} 6. Be3 {[%emt 0:00:50]} e5 {[%emt 0:00:06]} 7. Nf3 {[%emt 0:00:07]} Be7 {[%emt 0:00:04]} 8. Bc4 {[%emt 0:00:04]} O-O {[%emt 0:00:05]} 9. O-O {[%emt 0:00:04]} Be6 {[%emt 0:00:03]} 10. Bb3 {[%emt 0:00:05]} Nc6 {[%emt 0:00:03]} 11. Bg5 {[%emt 0:00:14]} Nd7 {[%emt 0:01:14]} 12. Bxe7 {[%emt 0:00:34]} Qxe7 {[%emt 0:01:01]} 13. Nd5 {[%emt 0:00:41]} Bxd5 {[%emt 0:01:04]} 14. Bxd5 {[%emt 0:01:17]} Nf6 {[%emt 0:04:09]} 15. c3 {[%emt 0:05:11]} Rfd8 {[%emt 0:01:36]} 16. Qd3 {[%emt 0:08:37]} Nb8 {[%emt 0:06:18]} 17. Rad1 {[%emt 0:06:07]} Nbd7 {[%emt 0:02:35]} 18. Rfe1 {[%emt 0:01:52]} g6 {[%emt 0:06:09]} 19. g3 {[%emt 0:09:29]} Rac8 {[%emt 0:04:39]} 20. Nh4 {[%emt 0:13:38]} b5 {[%emt 0:04:45]} 21. Ng2 {[%emt 0:04:18]} Nxd5 {[%emt 0:07:53]} 22. Qxd5 {[%emt 0:01:09]} Nb6 {[%emt 0:01:09]} 23. Qb3 {[%emt 0:05:17]} Rc4 {[%emt 0:07:50]} 24. f3 {[%emt 0:07:00]} Qf6 {[%emt 0:05:27]} 25. Rf1 {[%emt 0:15:38]} Qg5 {[%emt 0:05:23]} 26. Rd3 {[%emt 0:01:04]} Kg7 {[%emt 0:10:36]} 27. Rfd1 {[%emt 0:02:23]} Rc6 {[%emt 0:04:36]} 28. Qc2 {[%emt 0:04:00]} Qf6 {[%emt 0:03:23]} 29. Qe2 {[%emt 0:01:15]} Qe6 {[%emt 0:01:43]} 30. b3 {[%emt 0:00:29]} h5 {[%emt 0:02:32]} 31. Qd2 {[%emt 0:01:15]} a5 {[%emt 0:02:28]} 32. Ne3 {[%emt 0:00:25]} h4 {[%emt 0:02:03]} 33. Nf5+ {[%emt 0:04:17]} Kg8 {[%emt 0:10:36]} 34. Qh6 {[%emt 0:02:00]} Qf6 {[%emt 0:00:30]} 35. g4 {[%emt 0:01:23]} Nc8 {[%emt 0:01:11]} 36. f4 {[%emt 0:05:59]} exf4 {[%emt 0:00:53]} 37. Rh3 {[%emt 0:00:43]} d5 {[%emt 0:01:19]} 38. g5 {[%emt 0:00:41]} Qe5 {[%emt 0:01:40]} 39. Rxh4 {[%emt 0:00:38]} gxf5 {[%emt 0:00:47]} 40. Qxc6 {[%emt 0:00:00]} Qxe4 {[%emt 0:00:00]} 41. Rh8+ {[%emt 0:22:54]} 1/2-1/2

[Event "FIDE WYCC Open U14 2023"]
[Site "Montesilvano"]
[Date "2023.11.18"]
[Round "6.6"]
[White "Rustamov, Rustam"]
[Black "Matyassy, Lazar"]
[Result "1/2-1/2"]
[ECO "B58"]
[WhiteElo "2229"]
[BlackElo "2281"]
[Annotator "RC"]
[PlyCount "145"]
[EventDate "2023.11.13"]
[EventType "swiss"]
[EventCountry "ITA"]
[SourceTitle "playchess.com"]
[Source "ChessBase"]
[SourceQuality "1"]
[TimeControl "40/5400+30:1800+30"]

1. e4 {[%emt 0:00:02]} c5 {[%emt 0:00:06]} 2. Nf3 {[%emt 0:00:06]} d6 {[%emt 0:00:04]} 3. d4 {[%emt 0:00:07]} cxd4 {[%emt 0:00:05]} 4. Nxd4 {[%emt 0:00:02]} Nf6 {[%emt 0:00:10]} 5. Nc3 {[%emt 0:00:05]} Nc6 {[%emt 0:00:08]} 6. Be2 {[%emt 0:00:13]} e5 {[%emt 0:00:31]} 7. Nf3 {[%emt 0:00:18]} h6 {[%emt 0:00:10]} 8. O-O {[%emt 0:00:37]} Be7 {[%emt 0:00:09]} 9. h3 {[%emt 0:00:12]} O-O {[%emt 0:00:18]} 10. Nh2 {[%emt 0:00:30]} Nd4 {[%emt 0:10:22]} 11. Ng4 {[%emt 0:02:47]} Nxe2+ {[%emt 0:20:51]} 12. Qxe2 {[%emt 0:00:05]} Nxg4 {[%emt 0:00:27]} 13. hxg4 {[%emt 0:00:03]} Be6 {[%emt 0:01:38]} 14. Rd1 {[%emt 0:00:17]} Qc8 {[%emt 0:01:34]} 15. Nd5 {[%emt 0:00:39]} Re8 {[%emt 0:03:13]} 16. f3 {[%emt 0:00:40]} Bg5 {[%emt 0:00:28]} 17. Bxg5 {[%emt 0:01:11]} hxg5 {[%emt 0:00:02]} 18. c3 {[%emt 0:00:34]} Qc5+ {[%emt 0:01:40]} 19. Qf2 {[%emt 0:00:26]} Rac8 {[%emt 0:00:46]} 20. Rd2 {[%emt 0:00:35]} Kf8 {[%emt 0:05:06]} 21. Rad1 {[%emt 0:00:38]} Qxf2+ {[%emt 0:00:45]} 22. Kxf2 {[%emt 0:00:06]} Red8 {[%emt 0:00:11]} 23. a3 {[%emt 0:00:40]} Bxd5 {[%emt 0:01:31]} 24. Rxd5 {[%emt 0:00:04]} Ke7 {[%emt 0:00:09]} 25. Ke3 {[%emt 0:00:56]} f6 {[%emt 0:04:23]} 26. R1d3 {[%emt 0:00:21]} Rc5 {[%emt 0:05:58]} 27. b4 {[%emt 0:00:30]} Rc4 {[%emt 0:02:24]} 28. Rb5 {[%emt 0:00:46]} Rd7 {[%emt 0:00:08]} 29. a4 {[%emt 0:00:54]} Rc8 {[%emt 0:01:10]} 30. Rbd5 {[%emt 0:00:30]} Rc4 {[%emt 0:00:18]} 31. Kd2 {[%emt 0:00:45]} Rdc7 {[%emt 0:04:11]} 32. Rb5 {[%emt 0:00:30]} R4c6 {[%emt 0:01:42]} 33. Kc2 {[%emt 0:00:48]} Rb6 {[%emt 0:08:08]} 34. Rxb6 {[%emt 0:03:46]} axb6 {[%emt 0:00:54]} 35. Rd5 {[%emt 0:00:03]} Kd7 {[%emt 0:01:34]} 36. Rd1 {[%emt 0:00:10]} Rc8 {[%emt 0:01:34]} 37. Rh1 {[%emt 0:00:07]} Ke6 {[%emt 0:00:36]} 38. Kb3 {[%emt 0:00:16]} Ke7 {[%emt 0:02:08]} 39. Rh7 {[%emt 0:00:33]} Kf7 {[%emt 0:01:27]} 40. Rh2 {[%emt 0:00:00]} Ke7 {[%emt 0:00:00]} 41. Rh3 {[%emt 0:03:16]} Ke6 {[%emt 0:01:09]} 42. Rh5 {[%emt 0:00:37]} Ke7 {[%emt 0:00:23]} 43. Rh1 {[%emt 0:03:09]} Ke6 {[%emt 0:01:23]} 44. c4 {[%emt 0:00:58]} Ra8 {[%emt 0:01:18]} 45. g3 {[%emt 0:00:35]} Ke7 {[%emt 0:00:33]} 46. Rh2 {[%emt 0:01:52]} Ke6 {[%emt 0:00:09]} 47. b5 {[%emt 0:06:50]} Ke7 {[%emt 0:01:10]} 48. Rh7 {[%emt 0:00:13]} Kf7 {[%emt 0:00:11]} 49. Kb4 {[%emt 0:00:03]} Kg6 {[%emt 0:00:39]} 50. Rh1 {[%emt 0:00:33]} Kf7 {[%emt 0:00:13]} 51. Ra1 {[%emt 0:00:05]} Ra5 {[%emt 0:00:20]} 52. Rf1 {[%emt 0:00:56]} Ra8 {[%emt 0:00:58]} 53. f4 {[%emt 0:00:36]} gxf4 {[%emt 0:07:56]} 54. gxf4 {[%emt 0:00:02]} exf4 {[%emt 0:00:10]} 55. Rxf4 {[%emt 0:00:04]} Ke6 {[%emt 0:00:05]} 56. Rf5 {[%emt 0:02:07]} Ke7 {[%emt 0:00:38]} 57. Rf1 {[%emt 0:04:33]} Ke6 {[%emt 0:00:25]} 58. Rf5 {[%emt 0:00:43]} Ke7 {[%emt 0:00:06]} 59. g5 {[%emt 0:00:56]} fxg5 {[%emt 0:02:22]} 60. e5 {[%emt 0:00:48]} dxe5 {[%emt 0:06:35]} 61. Rxe5+ {[%emt 0:00:04]} Kf6 {[%emt 0:00:40]} 62. Rd5 {[%emt 0:00:03]} g4 {[%emt 0:00:54]} 63. Rd6+ {[%emt 0:00:17]} Kf5 {[%emt 0:04:13]} 64. Rxb6 {[%emt 0:00:04]} Rd8 {[%emt 0:02:10]} 65. Rxb7 {[%emt 0:00:35]} Kf6 {[%emt 0:00:09]} 66. Rb6+ {[%emt 0:00:55]} Kf5 {[%emt 0:02:02]} 67. Rb7 {[%emt 0:00:46]} Kf6 {[%emt 0:00:11]} 68. Rb6+ {[%emt 0:03:59]} Kf5 {[%emt 0:00:08]} 69. Rc6 {[%emt 0:00:06]} g3 {[%emt 0:01:55]} 70. Rc7 {[%emt 0:00:59]} Kf6 {[%emt 0:00:15]} 71. Rc6+ {[%emt 0:00:07]} Kf5 {[%emt 0:00:08]} 72. Rc5+ {[%emt 0:00:12]} Kf6 {[%emt 0:00:17]} 73. Rc6+ 1/2-1/2

[Event "FIDE WYCC Open U14 2023"]
[Site "Montesilvano"]
[Date "2023.11.18"]
[Round "6.7"]
[White "Prokhorov, Aleksey"]
[Black "Kozlovic, Jernej"]
[Result "1/2-1/2"]
[ECO "B17"]
[WhiteElo "1869"]
[BlackElo "2263"]
[Annotator "RC"]
[PlyCount "81"]
[EventDate "2023.11.13"]
[EventType "swiss"]
[EventCountry "ITA"]
[SourceTitle "playchess.com"]
[Source "ChessBase"]
[SourceQuality "1"]
[TimeControl "40/5400+30:1800+30"]

1. e4 {[%emt 0:01:00]} c6 {[%emt 0:00:41]} 2. d4 {[%emt 0:00:31]} d5 {[%emt 0:00:16]} 3. Nd2 {[%emt 0:00:57]} dxe4 {[%emt 0:00:38]} 4. Nxe4 {[%emt 0:01:03]} Nd7 {[%emt 0:01:30]} 5. c3 {[%emt 0:01:43]} Ngf6 {[%emt 0:00:16]} 6. Nxf6+ {[%emt 0:00:56]} Nxf6 {[%emt 0:00:15]} 7. Nf3 {[%emt 0:00:53]} Bg4 {[%emt 0:00:22]} 8. Be2 {[%emt 0:00:57]} e6 {[%emt 0:00:56]} 9. Bf4 {[%emt 0:01:31]} Bd6 {[%emt 0:07:26]} 10. Ne5 {[%emt 0:02:21]} Bxe2 {[%emt 0:02:47]} 11. Qxe2 {[%emt 0:00:12]} Qc7 {[%emt 0:05:40]} 12. O-O {[%emt 0:02:50]} Nd7 {[%emt 0:04:45]} 13. Rad1 {[%emt 0:01:37]} O-O {[%emt 0:06:07]} 14. Rd3 {[%emt 0:02:28]} Rfe8 {[%emt 0:16:06]} 15. Bg3 {[%emt 0:09:54]} Rad8 {[%emt 0:13:29]} 16. Nf3 {[%emt 0:04:16]} Bxg3 {[%emt 0:05:17]} 17. hxg3 {[%emt 0:00:50]} a5 {[%emt 0:01:36]} 18. b3 {[%emt 0:04:01]} Ra8 {[%emt 0:00:35]} 19. c4 {[%emt 0:02:33]} Qd6 {[%emt 0:04:12]} 20. Qc2 {[%emt 0:08:37]} Red8 {[%emt 0:02:21]} 21. Rfd1 {[%emt 0:00:37]} Nf6 {[%emt 0:01:42]} 22. a4 {[%emt 0:02:43]} Qc7 {[%emt 0:02:44]} 23. Ne5 {[%emt 0:03:46]} h6 {[%emt 0:02:18]} 24. Qe2 {[%emt 0:01:54]} Nd7 {[%emt 0:03:39]} 25. Nxd7 {[%emt 0:05:13]} Rxd7 {[%emt 0:00:46]} 26. d5 {[%emt 0:01:20]} exd5 {[%emt 0:03:20]} 27. cxd5 {[%emt 0:00:13]} c5 {[%emt 0:07:13]} 28. Re3 {[%emt 0:02:35]} g6 {[%emt 0:01:17]} 29. d6 {[%emt 0:12:24]} Rxd6 {[%emt 0:01:00]} 30. Re8+ {[%emt 0:00:23]} Rxe8 {[%emt 0:00:06]} 31. Qxe8+ {[%emt 0:00:22]} Kh7 {[%emt 0:00:06]} 32. Rxd6 {[%emt 0:00:54]} Qxd6 {[%emt 0:00:01]} 33. Qxf7+ {[%emt 0:00:17]} Kh8 {[%emt 0:00:01]} 34. Qxb7 {[%emt 0:06:06]} Qd1+ {[%emt 0:00:09]} 35. Kh2 {[%emt 0:00:08]} Qh5+ {[%emt 0:00:04]} 36. Kg1 {[%emt 0:00:47]} Qd1+ {[%emt 0:00:21]} 37. Kh2 {[%emt 0:00:07]} Qh5+ {[%emt 0:00:03]} 38. Kg1 {[%emt 0:00:07]} Qd1+ {[%emt 0:00:04]} 39. Kh2 {[%emt 0:00:09]} Qh5+ {[%emt 0:00:04]} 40. Kg1 {[%emt 0:00:00]} Qd1+ {[%emt 0:00:00]} 41. Kh2 {[%emt 0:00:15]} 1/2-1/2

[Event "FIDE WYCC Open U14 2023"]
[Site "Montesilvano"]
[Date "2023.11.18"]
[Round "6.8"]
[White "Uskov, Artem"]
[Black "Ermitsch, Magnus"]
[Result "*"]
[WhiteElo "2380"]
[BlackElo "2206"]
[Annotator "RC"]
[PlyCount "59"]
[EventDate "2023.11.13"]
[EventType "swiss"]
[EventCountry "ITA"]
[SourceTitle "playchess.com"]
[Source "ChessBase"]
[SourceQuality "1"]
[TimeControl "40/5400+30:1800+30"]

1. Nf3 {[%emt 0:03:41]} d5 {[%emt 0:00:06]} 2. e3 {[%emt 0:00:06]} Nf6 {[%emt 0:01:27]} 3. c4 {[%emt 0:00:12]} e6 {[%emt 0:00:10]} 4. b3 {[%emt 0:00:07]} c6 {[%emt 0:00:18]} 5. Bb2 {[%emt 0:00:24]} Nbd7 {[%emt 0:00:06]} 6. d4 {[%emt 0:00:27]} Bb4+ {[%emt 0:01:52]} 7. Nbd2 {[%emt 0:00:35]} O-O {[%emt 0:09:04]} 8. a3 {[%emt 0:06:01]} Bd6 {[%emt 0:03:42]} 9. Bd3 {[%emt 0:07:08]} b6 {[%emt 0:01:35]} 10. Qe2 {[%emt 0:14:40]} Bb7 {[%emt 0:04:16]} 11. e4 {[%emt 0:02:15]} dxe4 {[%emt 0:01:14]} 12. Nxe4 {[%emt 0:00:37]} Nxe4 {[%emt 0:01:45]} 13. Qxe4 {[%emt 0:00:39]} Nf6 {[%emt 0:00:05]} 14. Qh4 {[%emt 0:01:22]} h6 {[%emt 0:01:51]} 15. O-O {[%emt 0:00:51]} c5 {[%emt 0:06:17]} 16. Rad1 {[%emt 0:02:56]} Ne4 {[%emt 0:02:29]} 17. Qh5 {[%emt 0:02:55]} Qe7 {[%emt 0:10:20]} 18. Bxe4 {[%emt 0:12:36]} Bxe4 {[%emt 0:01:46]} 19. dxc5 {[%emt 0:00:08]} bxc5 {[%emt 0:01:32]} 20. Qg4 {[%emt 0:00:33]} f5 {[%emt 0:06:58]} 21. Qg6 {[%emt 0:05:21]} Rad8 {[%emt 0:03:52]} 22. Ne5 {[%emt 0:06:43]} Qf6 {[%emt 0:13:06]} 23. Qg3 {[%emt 0:01:59]} f4 {[%emt 0:08:46]} 24. Qc3 {[%emt 0:00:14]} Bxe5 {[%emt 0:02:04]} 25. Qxe5 {[%emt 0:00:14]} Qg6 {[%emt 0:00:22]} 26. g3 {[%emt 0:01:32]} fxg3 {[%emt 0:02:49]} 27. hxg3 {[%emt 0:02:13]} Rxd1 {[%emt 0:04:03]} 28. Rxd1 {[%emt 0:00:10]} Rf7 {[%emt 0:01:44]} 29. Re1 {[%emt 0:09:16]} Bb7 {[%emt 0:02:16]} 30. Bc1 {[%emt 0:10:06]} *

[Event "FIDE WYCC Open U14 2023"]
[Site "Montesilvano"]
[Date "2023.11.18"]
[Round "6.9"]
[White "Agasarov, Benik"]
[Black "Farias, David Nuno M E"]
[Result "*"]
[WhiteElo "2360"]
[BlackElo "2149"]
[Annotator "ChessBase"]
[PlyCount "61"]
[EventDate "2023.11.13"]
[EventType "swiss"]
[EventCountry "ITA"]
[SourceTitle "playchess.com"]
[Source "ChessBase"]
[SourceQuality "1"]
[TimeControl "40/5400+30:1800+30"]

1. d4 {[%emt 0:00:03]} Nf6 {[%emt 0:00:09]} 2. c4 {[%emt 0:00:08]} g6 {[%emt 0:00:08]} 3. Nc3 {[%emt 0:00:30]} d5 {[%emt 0:00:39]} 4. Nf3 {[%emt 0:01:12]} Bg7 {[%emt 0:00:30]} 5. Qb3 {[%emt 0:00:39]} dxc4 {[%emt 0:00:24]} 6. Qxc4 {[%emt 0:00:05]} O-O {[%emt 0:00:26]} 7. e4 {[%emt 0:00:20]} a6 {[%emt 0:00:38]} 8. Be2 {[%emt 0:03:54]} b5 {[%emt 0:03:34]} 9. Qb3 {[%emt 0:01:05]} c5 {[%emt 0:00:49]} 10. dxc5 {[%emt 0:00:32]} Be6 {[%emt 0:02:11]} 11. Qc2 {[%emt 0:01:58]} Nbd7 {[%emt 0:03:55]} 12. Be3 {[%emt 0:02:26]} Rc8 {[%emt 0:02:48]} 13. Rd1 {[%emt 0:11:36]} Qa5 {[%emt 0:15:39]} 14. a3 {[%emt 0:06:42]} b4 {[%emt 0:07:39]} 15. axb4 {[%emt 0:01:26]} Qxb4 {[%emt 0:00:10]} 16. Rd4 {[%emt 0:05:21]} Qb7 {[%emt 0:07:03]} 17. b4 {[%emt 0:09:05]} Ng4 {[%emt 0:10:26]} 18. Bd2 {[%emt 0:00:10]} Nde5 {[%emt 0:08:58]} 19. Nxe5 {[%emt 0:05:10]} Nxe5 {[%emt 0:03:19]} 20. Nd5 {[%emt 0:06:06]} Nc6 {[%emt 0:07:30]} 21. Rc4 {[%emt 0:00:25]} Nd4 {[%emt 0:01:09]} 22. Rxd4 {[%emt 0:07:40]} Bxd4 {[%emt 0:00:03]} 23. Qc4 {[%emt 0:00:55]} Bg7 {[%emt 0:05:39]} 24. c6 {[%emt 0:01:01]} Bxd5 {[%emt 0:09:47]} 25. exd5 {[%emt 0:00:06]} Qc7 {[%emt 0:01:23]} 26. O-O {[%emt 0:01:02]} Be5 {[%emt 0:01:43]} 27. g3 {[%emt 0:00:33]} Rfd8 {[%emt 0:03:03]} 28. Be3 {[%emt 0:00:17]} Rb8 {[%emt 0:03:01]} 29. Rd1 {[%emt 0:04:01]} Bd6 {[%emt 0:01:29]} 30. Rb1 {[%emt 0:00:05]} Rdc8 {[%emt 0:00:44]} 31. Qe4 {[%emt 0:10:05]} *

[Event "FIDE WYCC Open U14 2023"]
[Site "Montesilvano"]
[Date "2023.11.18"]
[Round "6.10"]
[White "Besou, Hussain"]
[Black "kiladze, Luka"]
[Result "1/2-1/2"]
[ECO "B31"]
[WhiteElo "2341"]
[BlackElo "2145"]
[Annotator "RC"]
[PlyCount "111"]
[EventDate "2023.11.13"]
[EventType "swiss"]
[EventCountry "ITA"]
[SourceTitle "playchess.com"]
[Source "ChessBase"]
[SourceQuality "1"]
[TimeControl "40/5400+30:1800+30"]

1. e4 {[%emt 0:00:03]} c5 {[%emt 0:00:07]} 2. Nf3 {[%emt 0:00:06]} Nc6 {[%emt 0:00:03]} 3. Bb5 {[%emt 0:00:05]} g6 {[%emt 0:00:04]} 4. Bxc6 {[%emt 0:00:31]} dxc6 {[%emt 0:00:04]} 5. d3 {[%emt 0:00:12]} Bg7 {[%emt 0:00:13]} 6. O-O {[%emt 0:00:10]} e5 {[%emt 0:01:57]} 7. Be3 {[%emt 0:00:56]} b6 {[%emt 0:00:29]} 8. a3 {[%emt 0:03:39]} a5 {[%emt 0:13:20]} 9. Nbd2 {[%emt 0:01:40]} a4 {[%emt 0:05:47]} 10. Nc4 {[%emt 0:12:50]} Qc7 {[%emt 0:09:57]} 11. b4 {[%emt 0:11:04]} axb3 {[%emt 0:02:05]} 12. cxb3 {[%emt 0:00:08]} Ne7 {[%emt 0:29:21]} 13. b4 {[%emt 0:02:21]} b5 {[%emt 0:00:12]} 14. Na5 {[%emt 0:00:59]} cxb4 {[%emt 0:00:20]} 15. axb4 {[%emt 0:00:06]} O-O {[%emt 0:00:30]} 16. Qc2 {[%emt 0:03:57]} Bg4 {[%emt 0:02:01]} 17. Nd2 {[%emt 0:00:43]} Rac8 {[%emt 0:02:04]} 18. Ndb3 {[%emt 0:03:07]} h6 {[%emt 0:05:14]} 19. f3 {[%emt 0:01:03]} Bd7 {[%emt 0:00:28]} 20. Nc5 {[%emt 0:07:47]} f5 {[%emt 0:04:07]} 21. Rfd1 {[%emt 0:07:14]} g5 {[%emt 0:03:05]} 22. Na6 {[%emt 0:06:31]} Qd6 {[%emt 0:00:20]} 23. Bc5 {[%emt 0:01:08]} Qf6 {[%emt 0:00:45]} 24. Nb7 {[%emt 0:05:55]} g4 {[%emt 0:05:28]} 25. fxg4 {[%emt 0:00:45]} fxe4 {[%emt 0:00:56]} 26. dxe4 {[%emt 0:01:12]} Bxg4 {[%emt 0:00:15]} 27. Rf1 {[%emt 0:00:37]} Qg5 {[%emt 0:00:59]} 28. Qb3+ {[%emt 0:04:08]} Kh7 {[%emt 0:00:08]} 29. Qg3 {[%emt 0:01:37]} Rxf1+ {[%emt 0:01:07]} 30. Rxf1 {[%emt 0:00:06]} Ng6 {[%emt 0:00:23]} 31. h3 {[%emt 0:02:38]} Be6 {[%emt 0:00:48]} 32. Qxg5 {[%emt 0:00:14]} hxg5 {[%emt 0:00:05]} 33. Nd6 {[%emt 0:00:34]} Rd8 {[%emt 0:01:36]} 34. Nc7 {[%emt 0:01:37]} Bc4 {[%emt 0:02:22]} 35. Nxc4 {[%emt 0:00:26]} bxc4 {[%emt 0:00:05]} 36. Ne6 {[%emt 0:00:05]} Rd7 {[%emt 0:00:32]} 37. Rc1 {[%emt 0:16:25]} Nf4 {[%emt 0:04:02]} 38. Nxf4 {[%emt 0:00:20]} exf4 {[%emt 0:00:10]} 39. Rxc4 {[%emt 0:00:05]} Kg6 {[%emt 0:00:47]} 40. Bb6 {[%emt 0:00:00]} Kh5 {[%emt 0:00:00]} 41. Rxc6 {[%emt 0:05:51]} Rd1+ 42. Kf2 {[%emt 0:04:21]} Rb1 {[%emt 0:06:56]} 43. Bc5 {[%emt 0:02:22]} Rb2+ {[%emt 0:01:01]} 44. Kg1 {[%emt 0:02:12]} Rb1+ {[%emt 0:03:04]} 45. Kh2 {[%emt 0:01:27]} Rb2 {[%emt 0:00:39]} 46. Rc7 {[%emt 0:01:38]} Bc3 {[%emt 0:02:18]} 47. Kg1 {[%emt 0:07:51]} Bxb4 {[%emt 0:05:21]} 48. Bxb4 {[%emt 0:01:01]} Rxb4 {[%emt 0:00:04]} 49. e5 {[%emt 0:01:27]} Re4 {[%emt 0:00:55]} 50. Rc5 {[%emt 0:00:37]} Kg6 {[%emt 0:01:09]} 51. Kf2 {[%emt 0:00:15]} Kf5 {[%emt 0:00:30]} 52. e6+ {[%emt 0:00:23]} Kf6 {[%emt 0:00:06]} 53. Kf3 {[%emt 0:00:15]} Rxe6 {[%emt 0:01:50]} 54. Kg4 {[%emt 0:00:16]} Re2 {[%emt 0:00:12]} 55. Rf5+ {[%emt 0:00:33]} Ke6 {[%emt 0:00:12]} 56. Rxg5 {[%emt 0:00:04]} 1/2-1/2